[Event "Live Chess"]
[Site "Chess.com"]
[Date "2024.06.01"]
[Round "-"]
[White "WelshTiger"]
[Black "StoreySniper"]
[Result "0-1"]
[WhiteElo "2478"]
[BlackElo "2541"]
[TimeControl "300"]
[EndTime "15:49:51 PDT"]
[Termination "StoreySniper won by resignation"]

1. e4 {[%clk 0:04:53.7]} 1... g6 {[%clk 0:04:56.8]} 2. d4 {[%clk 0:04:52]} 2...
Bg7 {[%clk 0:04:56.5]} 3. Nc3 {[%clk 0:04:50.9]} 3... c5 {[%clk 0:04:55.9]} 4.
d5 {[%clk 0:04:45.8]} 4... d6 {[%clk 0:04:54.4]} 5. h3 {[%clk 0:04:44.6]} 5...
Bxc3+ {[%clk 0:04:51.2]} 6. bxc3 {[%clk 0:04:43.3]} 6... Nf6 {[%clk 0:04:50.8]}
7. f3 {[%clk 0:04:21.4]} 7... Qa5 {[%clk 0:04:49.2]} 8. Bd2 {[%clk 0:04:19.6]}
8... O-O {[%clk 0:04:38.3]} 9. h4 {[%clk 0:04:15.5]} 9... h5 {[%clk 0:04:36.4]}
10. c4 {[%clk 0:04:00.8]} 10... Qa4 {[%clk 0:04:35.5]} 11. Bc3 {[%clk
0:03:58.8]} 11... Nbd7 {[%clk 0:04:26.5]} 12. Bd3 {[%clk 0:03:52.9]} 12... a6
{[%clk 0:04:23.8]} 13. g4 {[%clk 0:03:46]} 13... b5 {[%clk 0:04:14.6]} 14. gxh5
{[%clk 0:03:20.4]} 14... Nxh5 {[%clk 0:04:13.5]} 15. Qd2 {[%clk 0:03:12.9]}
15... Kh7 {[%clk 0:04:06.9]} 16. Nh3 {[%clk 0:03:10.1]} 16... f6 {[%clk
0:03:48.2]} 17. Nf4 {[%clk 0:03:05.7]} 17... Ne5 {[%clk 0:03:38.6]} 18. Bxe5
{[%clk 0:03:01.1]} 18... dxe5 {[%clk 0:03:30.1]} 19. Nxh5 {[%clk 0:03:00.4]}
19... gxh5 {[%clk 0:03:27]} 20. Rg1 {[%clk 0:02:37.4]} 20... Bd7 {[%clk
0:03:23.5]} 21. Rg5 {[%clk 0:02:27.4]} 21... fxg5 {[%clk 0:03:11.4]} 22. Qxg5
{[%clk 0:02:26.5]} 22... Be8 {[%clk 0:03:04.5]} 23. Qxe7+ {[%clk 0:02:18.1]}
23... Bf7 {[%clk 0:02:56]} 24. Qxe5 {[%clk 0:01:49.7]} 24... bxc4 {[%clk
0:02:51.7]} 25. Be2 {[%clk 0:01:19.2]} 25... Qxc2 {[%clk 0:02:46.3]} 26. Kf2
{[%clk 0:01:18.3]} 26... Bg6 {[%clk 0:02:41.8]} 27. Rg1 {[%clk 0:01:16.5]} 27...
Qxe4 {[%clk 0:02:30.9]} 28. Qc7+ {[%clk 0:01:04.6]} 28... Kh8 {[%clk 0:02:29.4]}
29. Rg5 {[%clk 0:00:56.5]} 29... Qxh4+ {[%clk 0:02:25.8]} 30. Rg3 {[%clk
0:00:53.2]} 30... Rae8 {[%clk 0:02:18.3]} 31. Bxc4 {[%clk 0:00:29.4]} 31... Qh2+
{[%clk 0:02:12.9]} 32. Kf1 {[%clk 0:00:25.4]} 32... Rxf3+ {[%clk 0:02:09]} 33.
Rxf3 {[%clk 0:00:24.1]} 33... Qxc7 {[%clk 0:02:08]} 0-1

[Event "Live Chess"]
[Site "Chess.com"]
[Date "2024.06.01"]
[Round "-"]
[White "OurKnightAtTheOpera"]
[Black "Outspanner"]
[Result "0-1"]
[WhiteElo "1986"]
[BlackElo "1620"]
[TimeControl "300"]
[EndTime "15:49:51 PDT"]
[Termination "Outspanner won by resignation"]

1. e4 {[%clk 0:04:59.9]} 1... c5 {[%clk 0:04:57.3]} 2. d4 {[%clk 0:04:56.6]}
2... cxd4 {[%clk 0:04:55.6]} 3. c3 {[%clk 0:04:56.1]} 3... dxc3 {[%clk
0:04:54.5]} 4. Nxc3 {[%clk 0:04:56]} 4... Nc6 {[%clk 0:04:51.5]} 5. Nf3 {[%clk
0:04:55.2]} 5... e6 {[%clk 0:04:50.7]} 6. Bc4 {[%clk 0:04:54.5]} 6... Bb4 {[%clk
0:04:47.9]} 7. Qc2 {[%clk 0:04:52.8]} 7... Nge7 {[%clk 0:04:42.5]} 8. O-O {[%clk
0:04:50.6]} 8... O-O {[%clk 0:04:26.6]} 9. Bg5 {[%clk 0:04:38.5]} 9... Qa5
{[%clk 0:04:15.8]} 10. Nb5 {[%clk 0:04:15.4]} 10... a6 {[%clk 0:03:51]} 11. Nd6
{[%clk 0:04:10]} 11... Bxd6 {[%clk 0:03:47.6]} 0-1

[Event "Live Chess"]
[Site "Chess.com"]
[Date "2024.06.01"]
[Round "-"]
[White "TigerTank70"]
[Black "grillage"]
[Result "1-0"]
[WhiteElo "2237"]
[BlackElo "1870"]
[TimeControl "300"]
[EndTime "15:50:19 PDT"]
[Termination "TigerTank70 won on time"]

1. e4 {[%clk 0:04:56.9]} 1... d5 {[%clk 0:04:58.5]} 2. exd5 {[%clk 0:04:55.6]}
2... Qxd5 {[%clk 0:04:57.1]} 3. d4 {[%clk 0:04:54.3]} 3... e5 {[%clk 0:04:53.8]}
4. c3 {[%clk 0:04:53.3]} 4... exd4 {[%clk 0:04:52.2]} 5. cxd4 {[%clk 0:04:52.3]}
5... Nf6 {[%clk 0:04:46.6]} 6. Nc3 {[%clk 0:04:49.7]} 6... Bb4 {[%clk
0:04:45.5]} 7. Nf3 {[%clk 0:04:32.4]} 7... O-O {[%clk 0:04:43.1]} 8. Be2 {[%clk
0:04:30]} 8... Nc6 {[%clk 0:04:24.4]} 9. O-O {[%clk 0:04:28.5]} 9... Bxc3 {[%clk
0:04:23.4]} 10. bxc3 {[%clk 0:04:28]} 10... Bf5 {[%clk 0:04:12.2]} 11. Bf4
{[%clk 0:04:15.9]} 11... Qd7 {[%clk 0:04:04.4]} 12. Bd3 {[%clk 0:04:12.9]} 12...
Bxd3 {[%clk 0:04:02.4]} 13. Qxd3 {[%clk 0:04:12.8]} 13... Rfe8 {[%clk
0:03:38.9]} 14. Rab1 {[%clk 0:04:10.3]} 14... b6 {[%clk 0:03:34.6]} 15. Rfd1
{[%clk 0:03:50.6]} 15... Nh5 {[%clk 0:03:18.6]} 16. Be3 {[%clk 0:03:48.3]} 16...
Ne7 {[%clk 0:03:00.9]} 17. h3 {[%clk 0:03:37.6]} 17... Ng6 {[%clk 0:02:57.9]}
18. Qd2 {[%clk 0:03:20.7]} 18... Rad8 {[%clk 0:02:53.7]} 19. c4 {[%clk
0:03:17.9]} 19... Nf6 {[%clk 0:02:49.6]} 20. d5 {[%clk 0:03:11.9]} 20... Ne4
{[%clk 0:02:45.2]} 21. Qc2 {[%clk 0:03:08.3]} 21... Qd6 {[%clk 0:02:39.5]} 22.
Rd4 {[%clk 0:03:02.9]} 22... Nc5 {[%clk 0:02:37.6]} 23. Rbd1 {[%clk 0:02:53]}
23... a5 {[%clk 0:02:32.8]} 24. Rg4 {[%clk 0:02:45.8]} 24... Ne5 {[%clk
0:02:24.5]} 25. Nxe5 {[%clk 0:02:29.1]} 25... Rxe5 {[%clk 0:02:21.9]} 26. Bf4
{[%clk 0:02:21.2]} 26... Rde8 {[%clk 0:02:05.2]} 27. Bxe5 {[%clk 0:02:17.7]}
27... Qxe5 {[%clk 0:02:01.7]} 28. Rg3 {[%clk 0:01:48.3]} 28... Qf4 {[%clk
0:01:50.2]} 29. Rf3 {[%clk 0:01:41.7]} 29... Qg5 {[%clk 0:01:45.5]} 30. Qd2
{[%clk 0:01:20.6]} 30... Qh4 {[%clk 0:01:20.8]} 31. Re1 {[%clk 0:01:09.4]} 31...
Rd8 {[%clk 0:01:14.2]} 32. Qf4 {[%clk 0:00:56.1]} 32... Qxf4 {[%clk 0:01:05.7]}
33. Rxf4 {[%clk 0:00:56]} 33... Nd3 {[%clk 0:01:04.2]} 34. Rfe4 {[%clk 0:00:53]}
34... Nxe1 {[%clk 0:01:03.3]} 35. Rxe1 {[%clk 0:00:52.9]} 35... Kf8 {[%clk
0:01:02.2]} 36. f3 {[%clk 0:00:43.6]} 36... Rd7 {[%clk 0:01:00]} 37. Kf2 {[%clk
0:00:42.1]} 37... Re7 {[%clk 0:00:59.2]} 38. Re4 {[%clk 0:00:40.2]} 38... g6
{[%clk 0:00:54.3]} 39. g4 {[%clk 0:00:34.8]} 39... f6 {[%clk 0:00:46.1]} 40. Rf4
{[%clk 0:00:31.7]} 40... Kf7 {[%clk 0:00:44.4]} 41. Rd4 {[%clk 0:00:30.3]} 41...
Rd7 {[%clk 0:00:40]} 42. Rd3 {[%clk 0:00:26.8]} 42... Ke7 {[%clk 0:00:38.7]} 43.
f4 {[%clk 0:00:21.1]} 43... Kd6 {[%clk 0:00:37.5]} 44. Kf3 {[%clk 0:00:19.6]}
44... Re7 {[%clk 0:00:36]} 45. h4 {[%clk 0:00:17.9]} 45... Kc5 {[%clk
0:00:30.9]} 46. Rc3 {[%clk 0:00:13.8]} 46... Kd4 {[%clk 0:00:28.6]} 47. Rc2
{[%clk 0:00:11.6]} 47... Re3+ {[%clk 0:00:27]} 48. Kf2 {[%clk 0:00:10]} 48...
Rc3 {[%clk 0:00:25.3]} 49. Rd2+ {[%clk 0:00:06]} 49... Kxc4 {[%clk 0:00:23.7]}
50. d6 {[%clk 0:00:05.4]} 50... cxd6 {[%clk 0:00:20.7]} 51. Rxd6 {[%clk
0:00:05.3]} 51... f5 {[%clk 0:00:15.1]} 52. Rc6+ {[%clk 0:00:04.1]} 52... Kb4
{[%clk 0:00:12.5]} 53. Rxb6+ {[%clk 0:00:03.5]} 53... Ka3 {[%clk 0:00:10.9]} 54.
gxf5 {[%clk 0:00:03.3]} 54... gxf5 {[%clk 0:00:09.2]} 55. Rb5 {[%clk 0:00:02.7]}
55... a4 {[%clk 0:00:07.4]} 56. Rxf5 {[%clk 0:00:02]} 56... Rh3 {[%clk
0:00:05.2]} 57. Ra5 {[%clk 0:00:01.2]} 57... Rxh4 {[%clk 0:00:04]} 58. Kg3
{[%clk 0:00:00.5]} 58... Rh1 {[%clk 0:00:01.2]} 59. f5 {[%clk 0:00:00.4]} 1-0

[Event "Live Chess"]
[Site "Chess.com"]
[Date "2024.06.01"]
[Round "-"]
[White "LL220284LL"]
[Black "nigelst"]
[Result "1-0"]
[WhiteElo "2513"]
[BlackElo "1698"]
[TimeControl "300"]
[EndTime "15:50:55 PDT"]
[Termination "LL220284LL won by resignation"]

1. g3 {[%clk 0:04:58.1]} 1... d5 {[%clk 0:04:57.7]} 2. Bg2 {[%clk 0:04:57.5]}
2... e5 {[%clk 0:04:56.9]} 3. d3 {[%clk 0:04:56.3]} 3... Nf6 {[%clk 0:04:56.3]}
4. Nf3 {[%clk 0:04:54.5]} 4... Nc6 {[%clk 0:04:55.5]} 5. b3 {[%clk 0:04:53.2]}
5... Bg4 {[%clk 0:04:52.9]} 6. Bb2 {[%clk 0:04:52.2]} 6... Bd6 {[%clk
0:04:50.3]} 7. h3 {[%clk 0:04:51.5]} 7... Bxf3 {[%clk 0:04:48.5]} 8. Bxf3 {[%clk
0:04:50.4]} 8... O-O {[%clk 0:04:47.3]} 9. Nd2 {[%clk 0:04:48.9]} 9... Re8
{[%clk 0:04:43.7]} 10. Bg2 {[%clk 0:04:43.2]} 10... Qd7 {[%clk 0:04:34.5]} 11.
O-O {[%clk 0:04:41.1]} 11... Rad8 {[%clk 0:04:30.2]} 12. e3 {[%clk 0:04:38.9]}
12... Qe7 {[%clk 0:04:23.2]} 13. a4 {[%clk 0:04:34.7]} 13... a5 {[%clk
0:04:08.9]} 14. Qe2 {[%clk 0:04:32.9]} 14... Nb4 {[%clk 0:03:51.8]} 15. Nf3
{[%clk 0:04:25.9]} 15... e4 {[%clk 0:03:45.1]} 16. Nd4 {[%clk 0:04:22.9]} 16...
Qd7 {[%clk 0:03:32.8]} 17. Rfd1 {[%clk 0:04:18.6]} 17... exd3 {[%clk 0:03:25.2]}
18. cxd3 {[%clk 0:04:16.5]} 18... c6 {[%clk 0:03:16.4]} 19. Nf3 {[%clk
0:04:12.1]} 19... Qe7 {[%clk 0:02:57.7]} 20. Rac1 {[%clk 0:04:06.9]} 20... Na2
{[%clk 0:02:35.4]} 21. Ra1 {[%clk 0:03:54.8]} 21... Nb4 {[%clk 0:02:33.7]} 22.
Nd4 {[%clk 0:03:53.7]} 22... Qd7 {[%clk 0:02:21.4]} 23. Rab1 {[%clk 0:03:50.4]}
23... Re7 {[%clk 0:02:19.3]} 24. Qf3 {[%clk 0:03:46.4]} 24... Rde8 {[%clk
0:02:15.9]} 25. Nf5 {[%clk 0:03:45]} 25... Re6 {[%clk 0:02:09.5]} 26. e4 {[%clk
0:03:24.9]} 26... Be5 {[%clk 0:01:57.3]} 27. d4 {[%clk 0:03:17.1]} 27... Bc7
{[%clk 0:01:54.4]} 28. e5 {[%clk 0:03:15.5]} 28... Ne4 {[%clk 0:01:52.4]} 29.
Qg4 {[%clk 0:03:11.6]} 29... Rg6 {[%clk 0:01:47.7]} 30. Nh6+ {[%clk 0:03:09.5]}
30... gxh6 {[%clk 0:01:40.7]} 31. Qxd7 {[%clk 0:03:09.4]} 1-0

[Event "Live Chess"]
[Site "Chess.com"]
[Date "2024.06.01"]
[Round "-"]
[White "NAZRIZ1977"]
[Black "jimwad"]
[Result "1-0"]
[WhiteElo "2164"]
[BlackElo "1308"]
[TimeControl "300"]
[EndTime "15:51:25 PDT"]
[Termination "NAZRIZ1977 won by resignation"]

1. c4 {[%clk 0:04:52.2]} 1... e5 {[%clk 0:04:57.9]} 2. g3 {[%clk 0:04:49.7]}
2... Nc6 {[%clk 0:04:55.7]} 3. Bg2 {[%clk 0:04:48.8]} 3... Nf6 {[%clk
0:04:54.6]} 4. Nc3 {[%clk 0:04:47.8]} 4... Bc5 {[%clk 0:04:51.7]} 5. a3 {[%clk
0:04:43.8]} 5... O-O {[%clk 0:04:50.2]} 6. e3 {[%clk 0:04:41.8]} 6... a5 {[%clk
0:04:46]} 7. Nge2 {[%clk 0:04:40.4]} 7... Rb8 {[%clk 0:04:42.5]} 8. O-O {[%clk
0:04:39.2]} 8... d6 {[%clk 0:04:32.8]} 9. h3 {[%clk 0:04:36.6]} 9... Be6 {[%clk
0:04:30.7]} 10. d4 {[%clk 0:04:35.2]} 10... exd4 {[%clk 0:04:28.9]} 11. exd4
{[%clk 0:04:33.1]} 11... Ba7 {[%clk 0:04:24.6]} 12. d5 {[%clk 0:04:25]} 12...
Bxd5 {[%clk 0:04:10.2]} 13. Nxd5 {[%clk 0:04:20.7]} 13... Nxd5 {[%clk
0:04:08.2]} 14. cxd5 {[%clk 0:04:19.8]} 14... Ne5 {[%clk 0:04:04.2]} 15. Kh2
{[%clk 0:04:18.7]} 15... c6 {[%clk 0:03:37.3]} 16. Bf4 {[%clk 0:04:10.4]} 16...
Ng6 {[%clk 0:03:28.8]} 17. Qd3 {[%clk 0:04:06.6]} 17... Nxf4 {[%clk 0:03:23.1]}
18. Nxf4 {[%clk 0:04:05.4]} 18... cxd5 {[%clk 0:03:15.2]} 19. Qxd5 {[%clk
0:04:02.2]} 19... Qe7 {[%clk 0:02:55.5]} 20. Rae1 {[%clk 0:03:57.1]} 20... Qc7
{[%clk 0:02:53]} 21. b4 {[%clk 0:03:49.4]} 21... axb4 {[%clk 0:02:51.5]} 22.
axb4 {[%clk 0:03:49]} 22... Bb6 {[%clk 0:02:36.1]} 23. Rd1 {[%clk 0:03:44.1]}
23... Ra8 {[%clk 0:02:31.1]} 24. Qxd6 {[%clk 0:03:40.7]} 24... Qxd6 {[%clk
0:02:30.1]} 25. Rxd6 {[%clk 0:03:40.3]} 25... Bc7 {[%clk 0:02:29.1]} 26. Rd7
{[%clk 0:03:38.9]} 26... Bxf4 {[%clk 0:02:23.6]} 27. gxf4 {[%clk 0:03:38.8]}
27... Ra4 {[%clk 0:02:16.5]} 28. Rxb7 {[%clk 0:03:35]} 28... h6 {[%clk
0:02:11.8]} 29. Bd5 {[%clk 0:03:32.7]} 29... Ra3 {[%clk 0:02:06.4]} 30. Rb1
{[%clk 0:03:28.7]} 30... Rd3 {[%clk 0:02:04.3]} 31. Bb3 {[%clk 0:03:21.6]} 31...
Rd2 {[%clk 0:02:01.8]} 32. Kg3 {[%clk 0:03:19.4]} 32... Rd3+ {[%clk 0:01:59.8]}
33. f3 {[%clk 0:03:17.6]} 33... Rd4 {[%clk 0:01:46.1]} 34. b5 {[%clk 0:03:16.4]}
34... Rd2 {[%clk 0:01:22.2]} 35. b6 {[%clk 0:03:14.5]} 35... Rd6 {[%clk
0:01:20.1]} 36. Rxf7 {[%clk 0:03:12.4]} 36... Rxf7 {[%clk 0:01:17.6]} 37. b7
{[%clk 0:03:09.4]} 37... Rb6 {[%clk 0:01:14.1]} 38. Bxf7+ {[%clk 0:03:07.4]} 1-0

[Event "Live Chess"]
[Site "Chess.com"]
[Date "2024.06.01"]
[Round "-"]
[White "blunderabit"]
[Black "GEMdzq"]
[Result "0-1"]
[WhiteElo "1774"]
[BlackElo "2303"]
[TimeControl "300"]
[EndTime "15:51:56 PDT"]
[Termination "GEMdzq won by resignation"]

1. e4 {[%clk 0:04:55.2]} 1... Nf6 {[%clk 0:04:58.5]} 2. e5 {[%clk 0:04:53]} 2...
Nd5 {[%clk 0:04:57.8]} 3. c4 {[%clk 0:04:51.7]} 3... Nb6 {[%clk 0:04:56.4]} 4.
d4 {[%clk 0:04:51.1]} 4... d6 {[%clk 0:04:55.6]} 5. exd6 {[%clk 0:04:50.5]} 5...
cxd6 {[%clk 0:04:54.6]} 6. Nc3 {[%clk 0:04:49.7]} 6... g6 {[%clk 0:04:53.9]} 7.
Be3 {[%clk 0:04:48]} 7... Bg7 {[%clk 0:04:53.2]} 8. Rc1 {[%clk 0:04:46.4]} 8...
O-O {[%clk 0:04:51.6]} 9. b3 {[%clk 0:04:45.2]} 9... Nc6 {[%clk 0:04:48.2]} 10.
d5 {[%clk 0:04:43.8]} 10... Ne5 {[%clk 0:04:46.3]} 11. Be2 {[%clk 0:04:43.2]}
11... a5 {[%clk 0:04:43.8]} 12. f4 {[%clk 0:04:36.7]} 12... Ned7 {[%clk
0:04:41.8]} 13. Nf3 {[%clk 0:04:31.2]} 13... Nc5 {[%clk 0:04:40.7]} 14. Bd4
{[%clk 0:04:27]} 14... Nbd7 {[%clk 0:04:28]} 15. Bxg7 {[%clk 0:04:24.1]} 15...
Kxg7 {[%clk 0:04:27.9]} 16. Qd4+ {[%clk 0:04:19.3]} 16... Nf6 {[%clk 0:04:27]}
17. O-O {[%clk 0:04:15.2]} 17... Qb6 {[%clk 0:04:21.1]} 18. Rb1 {[%clk
0:04:04.7]} 18... Bf5 {[%clk 0:04:18.4]} 19. Rbe1 {[%clk 0:03:50.3]} 19... Qb4
{[%clk 0:04:02.9]} 20. h3 {[%clk 0:03:45.5]} 20... a4 {[%clk 0:04:00.4]} 21. g4
{[%clk 0:03:43.2]} 21... axb3 {[%clk 0:03:53]} 22. gxf5 {[%clk 0:03:36]} 22...
bxa2 {[%clk 0:03:51.7]} 23. Ra1 {[%clk 0:03:31.9]} 23... Nb3 {[%clk 0:03:49.8]}
24. Qe3 {[%clk 0:03:19.5]} 24... Nxa1 {[%clk 0:03:47.4]} 25. Rxa1 {[%clk
0:03:17.8]} 25... Qb2 {[%clk 0:03:46.4]} 26. Rxa2 {[%clk 0:02:46]} 26... Rxa2
{[%clk 0:03:44]} 27. Nxa2 {[%clk 0:02:44]} 27... Qxa2 {[%clk 0:03:43.9]} 28.
fxg6 {[%clk 0:02:38.5]} 28... hxg6 {[%clk 0:03:42.6]} 29. Ng5 {[%clk 0:02:27.8]}
29... Re8 {[%clk 0:03:31.5]} 30. f5 {[%clk 0:02:22]} 30... Qb1+ {[%clk
0:03:29.7]} 31. Kh2 {[%clk 0:02:15.3]} 31... Qxf5 {[%clk 0:03:28.7]} 0-1

[Event "Live Chess"]
[Site "Chess.com"]
[Date "2024.06.01"]
[Round "-"]
[White "AlexanderMatlak"]
[Black "Queensandpawns"]
[Result "1-0"]
[WhiteElo "2401"]
[BlackElo "2337"]
[TimeControl "300"]
[EndTime "15:52:06 PDT"]
[Termination "AlexanderMatlak won by resignation"]

1. c4 {[%clk 0:04:56.6]} 1... d5 {[%clk 0:04:57.1]} 2. cxd5 {[%clk 0:04:53.8]}
2... c6 {[%clk 0:04:57]} 3. dxc6 {[%clk 0:04:53.3]} 3... Nxc6 {[%clk 0:04:56.9]}
4. Nf3 {[%clk 0:04:50.6]} 4... e5 {[%clk 0:04:56.1]} 5. e4 {[%clk 0:04:49.9]}
5... Nf6 {[%clk 0:04:54.6]} 6. Nc3 {[%clk 0:04:45.2]} 6... Bc5 {[%clk
0:04:54.1]} 7. Be2 {[%clk 0:04:44.5]} 7... Bg4 {[%clk 0:04:49.5]} 8. O-O {[%clk
0:04:43.4]} 8... Qd7 {[%clk 0:04:47.7]} 9. d3 {[%clk 0:04:32.2]} 9... O-O-O
{[%clk 0:04:45.1]} 10. Bg5 {[%clk 0:04:30.1]} 10... h6 {[%clk 0:04:42.7]} 11.
Bxf6 {[%clk 0:04:20.6]} 11... gxf6 {[%clk 0:04:42.6]} 12. Nd5 {[%clk 0:04:19.9]}
12... Qe6 {[%clk 0:04:31.4]} 13. Rc1 {[%clk 0:04:16.8]} 13... Bxf3 {[%clk
0:04:25.5]} 14. Bxf3 {[%clk 0:04:04.7]} 14... Bd4 {[%clk 0:04:19.9]} 15. Bg4
{[%clk 0:03:59.8]} 15... f5 {[%clk 0:04:05.6]} 16. Bxf5 {[%clk 0:03:57.6]} 16...
Qxf5 {[%clk 0:04:04.6]} 17. exf5 {[%clk 0:03:57.2]} 17... Rxd5 {[%clk
0:04:04.5]} 18. Qf3 {[%clk 0:03:53.6]} 18... Rhd8 {[%clk 0:04:02.1]} 19. b4
{[%clk 0:03:34.5]} 19... Kb8 {[%clk 0:03:58.9]} 20. Rc4 {[%clk 0:03:26.9]} 20...
Bb6 {[%clk 0:03:55.5]} 21. f6 {[%clk 0:03:15.9]} 21... Nd4 {[%clk 0:03:52.9]}
22. Qh3 {[%clk 0:02:56.3]} 22... Ne2+ {[%clk 0:03:47.3]} 23. Kh1 {[%clk
0:02:54.2]} 23... Rxd3 {[%clk 0:03:47.2]} 24. Rc8+ {[%clk 0:02:33.8]} 24... Rxc8
{[%clk 0:03:46.6]} 25. Qxd3 {[%clk 0:02:32.3]} 25... Nd4 {[%clk 0:03:46.5]} 26.
Qe3 {[%clk 0:02:23.5]} 26... Nc6 {[%clk 0:03:37.2]} 27. Qxh6 {[%clk 0:02:20.3]}
27... Nxb4 {[%clk 0:03:35.7]} 28. Qh5 {[%clk 0:02:16.4]} 28... Bd4 {[%clk
0:03:32.9]} 29. Qxf7 {[%clk 0:02:13.4]} 29... Nd3 {[%clk 0:03:27.6]} 30. g4
{[%clk 0:02:05.3]} 30... Nxf2+ {[%clk 0:03:25.5]} 31. Rxf2 {[%clk 0:02:04.2]}
31... Bxf2 {[%clk 0:03:25.4]} 32. g5 {[%clk 0:02:00.1]} 32... e4 {[%clk
0:03:22.4]} 33. Qe7 {[%clk 0:01:55.4]} 33... e3 {[%clk 0:03:21.4]} 34. f7 {[%clk
0:01:53.5]} 34... e2 {[%clk 0:03:06.6]} 35. Qxe2 {[%clk 0:01:47.9]} 35... Bc5
{[%clk 0:03:04.9]} 36. g6 {[%clk 0:01:45.2]} 36... Bf8 {[%clk 0:03:03.2]} 37.
Qe5+ {[%clk 0:01:43.7]} 37... Ka8 {[%clk 0:03:01.9]} 38. g7 {[%clk 0:01:42.6]}
38... Bxg7 {[%clk 0:02:58.1]} 39. Qxg7 {[%clk 0:01:42.5]} 39... a5 {[%clk
0:02:56.1]} 40. f8=Q {[%clk 0:01:40.6]} 40... Rb8 {[%clk 0:02:56]} 1-0

[Event "Live Chess"]
[Site "Chess.com"]
[Date "2024.06.01"]
[Round "-"]
[White "NeilDruggan73"]
[Black "Rusty_Bridges"]
[Result "1-0"]
[WhiteElo "1749"]
[BlackElo "1512"]
[TimeControl "300"]
[EndTime "15:52:11 PDT"]
[Termination "NeilDruggan73 won by resignation"]

1. d4 {[%clk 0:04:57.3]} 1... d5 {[%clk 0:04:58.3]} 2. Bg5 {[%clk 0:04:50.8]}
2... h6 {[%clk 0:04:56.4]} 3. Bh4 {[%clk 0:04:49.5]} 3... g5 {[%clk 0:04:55.7]}
4. Bg3 {[%clk 0:04:49.1]} 4... Bg7 {[%clk 0:04:54.7]} 5. e3 {[%clk 0:04:48]}
5... Nf6 {[%clk 0:04:53.7]} 6. Bd3 {[%clk 0:04:47.1]} 6... O-O {[%clk
0:04:50.3]} 7. h4 {[%clk 0:04:44.7]} 7... g4 {[%clk 0:04:43.4]} 8. h5 {[%clk
0:04:40.7]} 8... Ne4 {[%clk 0:04:18.9]} 9. Bh4 {[%clk 0:04:38]} 9... Qd6 {[%clk
0:04:08.2]} 10. c3 {[%clk 0:04:30.6]} 10... Bf6 {[%clk 0:04:04.6]} 11. Bxe4
{[%clk 0:04:24.2]} 11... dxe4 {[%clk 0:04:02.4]} 12. Bg3 {[%clk 0:04:23]} 12...
Qd7 {[%clk 0:03:53.4]} 13. Ne2 {[%clk 0:04:21.9]} 13... Bg5 {[%clk 0:03:49.6]}
14. Qc2 {[%clk 0:04:20.5]} 14... f5 {[%clk 0:03:43.3]} 15. Nd2 {[%clk
0:04:19.4]} 15... Nc6 {[%clk 0:03:30.3]} 16. O-O-O {[%clk 0:04:17.7]} 16... b5
{[%clk 0:03:27.8]} 17. Kb1 {[%clk 0:04:16.1]} 17... a5 {[%clk 0:03:20.6]} 18.
Qb3+ {[%clk 0:04:14.6]} 18... e6 {[%clk 0:03:15.3]} 19. Qxb5 {[%clk 0:04:06.8]}
19... Ba6 {[%clk 0:03:07.1]} 20. Qc5 {[%clk 0:03:52]} 20... Bxe2 {[%clk
0:03:02.8]} 21. Rc1 {[%clk 0:03:51.5]} 21... Rfb8 {[%clk 0:02:39.6]} 22. Rhe1
{[%clk 0:03:50]} 22... Bd3+ {[%clk 0:02:37.2]} 23. Ka1 {[%clk 0:03:48.6]} 23...
Rb5 {[%clk 0:02:34.8]} 24. Qa3 {[%clk 0:03:43.2]} 24... Rab8 {[%clk 0:02:29.2]}
25. Nb3 {[%clk 0:03:30]} 25... Be7 {[%clk 0:01:45.1]} 26. Nc5 {[%clk 0:03:26.8]}
26... Bxc5 {[%clk 0:01:38.6]} 27. dxc5 {[%clk 0:03:25.6]} 27... Rxb2 {[%clk
0:01:35.2]} 28. Qxb2 {[%clk 0:03:24.4]} 28... Rxb2 {[%clk 0:01:33.3]} 29. Kxb2
{[%clk 0:03:22.1]} 29... a4 {[%clk 0:01:29.1]} 30. Red1 {[%clk 0:03:16.5]} 30...
Na5 {[%clk 0:01:27.3]} 31. Ka1 {[%clk 0:03:04.1]} 31... Qc6 {[%clk 0:01:19.3]}
32. Be5 {[%clk 0:02:58.1]} 32... Qxc5 {[%clk 0:01:14.2]} 33. Bd4 {[%clk
0:02:52.6]} 33... Qd5 {[%clk 0:01:05.2]} 34. Rd2 {[%clk 0:02:45.3]} 34... Nc4
{[%clk 0:00:55.2]} 35. Rdd1 {[%clk 0:02:39.1]} 35... Na3 {[%clk 0:00:52.6]} 36.
Rd2 {[%clk 0:02:37.9]} 36... Nc2+ {[%clk 0:00:50.7]} 37. Rdxc2 {[%clk
0:02:36.1]} 37... Bxc2 {[%clk 0:00:49.4]} 38. Rxc2 {[%clk 0:02:35.8]} 38... Kf7
{[%clk 0:00:42.5]} 39. Kb2 {[%clk 0:02:34.6]} 39... c5 {[%clk 0:00:39.9]} 40.
Bh8 {[%clk 0:02:29.7]} 40... Qd7 {[%clk 0:00:30.1]} 41. c4 {[%clk 0:02:28.5]}
41... Kg8 {[%clk 0:00:25.1]} 42. Bc3 {[%clk 0:02:25.4]} 42... Qf7 {[%clk
0:00:23.4]} 43. Rd2 {[%clk 0:02:23.9]} 43... Qxh5 {[%clk 0:00:21.4]} 44. Rd8+
{[%clk 0:02:23]} 44... Kf7 {[%clk 0:00:20]} 45. Rd7+ {[%clk 0:02:21.5]} 45...
Ke8 {[%clk 0:00:18.5]} 46. Rd6 {[%clk 0:02:15.2]} 46... Ke7 {[%clk 0:00:14]} 47.
Rc6 {[%clk 0:02:13.2]} 47... Qh2 {[%clk 0:00:12.6]} 48. Rxc5 {[%clk 0:02:07.6]}
48... Qxg2 {[%clk 0:00:10.8]} 49. Rc7+ {[%clk 0:02:06]} 49... Kd6 {[%clk
0:00:09.3]} 50. Rb7 {[%clk 0:02:03.1]} 50... Qxf2+ {[%clk 0:00:09.2]} 51. Ka3
{[%clk 0:02:00.4]} 51... Qxe3 {[%clk 0:00:09.1]} 52. Kb2 {[%clk 0:01:53.6]}
52... Qe2+ {[%clk 0:00:07.6]} 53. Ka3 {[%clk 0:01:48.7]} 53... g3 {[%clk
0:00:07.5]} 54. Bb4+ {[%clk 0:01:44]} 54... Kc6 {[%clk 0:00:05.3]} 55. Rb5
{[%clk 0:01:39.3]} 55... Qxc4 {[%clk 0:00:04.4]} 56. Kxa4 {[%clk 0:01:30.4]}
56... g2 {[%clk 0:00:04.3]} 57. Rc5+ {[%clk 0:01:27.4]} 57... Kd6 {[%clk
0:00:03]} 58. Rxc4+ {[%clk 0:01:24.8]} 58... Kd7 {[%clk 0:00:02.9]} 59. Rc1
{[%clk 0:01:21]} 59... e3 {[%clk 0:00:02.8]} 60. Rg1 {[%clk 0:01:19.4]} 60... f4
{[%clk 0:00:02.7]} 61. Rxg2 {[%clk 0:01:18.3]} 61... e5 {[%clk 0:00:01.8]} 62.
Rg7+ {[%clk 0:01:15]} 62... Ke6 {[%clk 0:00:01.7]} 63. Rg6+ {[%clk 0:01:14.2]}
63... Kf5 {[%clk 0:00:01.6]} 64. Rxh6 {[%clk 0:01:13.3]} 64... Ke4 {[%clk
0:00:01.5]} 65. Rh5 {[%clk 0:01:08.2]} 65... e2 {[%clk 0:00:01.4]} 66. Rh3
{[%clk 0:01:04.2]} 66... f3 {[%clk 0:00:01.3]} 67. Rh4+ {[%clk 0:01:03.1]} 67...
Ke3 {[%clk 0:00:01.2]} 68. Rh5 {[%clk 0:01:02.1]} 68... Kf2 {[%clk 0:00:01.1]}
69. Rxe5 {[%clk 0:01:00.6]} 69... e1=Q {[%clk 0:00:00.6]} 70. Bxe1+ {[%clk
0:00:54.7]} 70... Kg2 {[%clk 0:00:00.5]} 1-0